fUST/lending_fUST_20260115
["ID","MTS","AMOUNT","RATE_DAILY","PERIOD"]
[402028471,1768487448309,-500.0,0.00021917,2]
[402028472,1768487448319,-1034.73,0.00021917,2]
[402028473,1768487448328,-500.0,0.00021917,2]
[402028474,1768487448338,-460.4,0.00021917,2]
[402028475,1768487448347,-503.59401643,0.00021917,2]
[402028476,1768487448358,-500.0,0.00021917,2]
[402028477,1768487448367,-500.0,0.00021917,2]
[402028478,1768487448376,-522.94,0.00021917,2]
[402028479,1768487448386,-660.52,0.00021917,2]
[402028480,1768487448395,-510.6,0.00021917,2]
[402028481,1768487448404,-500.0,0.00021917,2]
[402028482,1768487448414,-500.0,0.00021917,2]
[402028483,1768487448423,-500.0,0.00021917,2]
[402028484,1768487448432,-766.8,0.00021917,2]
[402028485,1768487448442,-500.0,0.00021917,2]
[402028486,1768487448453,-648.96,0.00021917,2]
[402028487,1768487448462,-500.0,0.00021917,2]
[402028488,1768487448474,-500.0,0.00021917,2]
[402028489,1768487448484,-500.0,0.00021917,2]
[402028490,1768487448495,-500.0,0.00021917,2]
[402028491,1768487448506,-518.2856943,0.00021917,2]
[402028492,1768487448515,-500.0,0.00021917,2]
[402028493,1768487448526,-500.0,0.00021917,2]
[402028494,1768487448536,-666.47,0.00021917,2]
[402028495,1768487448546,-500.0,0.00021917,2]
[402028496,1768487448555,-627.91,0.00021917,2]
[402028497,1768487448565,-500.0,0.00021917,2]
[402028498,1768487448574,-500.0,0.00021917,2]
[402028499,1768487448583,-500.0,0.00021917,2]
[402028500,1768487448592,-1765.87,0.00021917,2]
[402028501,1768487448604,-510.33337415,0.00021917,2]
[402028502,1768487448614,-500.0,0.00021917,2]
[402028503,1768487448623,-965.72,0.00021917,2]
[402028504,1768487448632,-1465.07,0.00021917,2]
[402028505,1768487448641,-323.30629134,0.00021917,2]
[402028506,1768487448651,-500.0,0.00021917,2]
[402028507,1768487448660,-515.01460532,0.00021917,2]
[402028508,1768487448669,-500.0,0.00021917,2]
[402028509,1768487448678,-500.0,0.00021917,2]
[402028510,1768487448687,-500.0,0.00021917,2]
[402028511,1768487448696,-500.0,0.00021917,2]
[402028512,1768487448705,-500.0,0.00021917,2]
[402028513,1768487448714,-1130.92,0.00021917,2]
[402028514,1768487448723,-557.68423974,0.00021917,2]
[402028515,1768487448732,-500.0,0.00021917,2]
[402028516,1768487448741,-526.5,0.00021917,2]
[402028517,1768487448750,-500.0,0.00021917,2]
[402028518,1768487448759,-500.0,0.00021917,2]
[402028519,1768487448768,-1697.5,0.00021917,2]
[402028520,1768487448777,-526.35,0.00021917,2]
[402028521,1768487448786,-500.0,0.00021917,2]
[402028522,1768487448798,-500.0,0.00021917,2]
[402028523,1768487448808,-500.0,0.00021917,2]
[402028524,1768487448818,-2715.18,0.00021917,2]
[402028525,1768487448829,-840.57,0.00021917,2]
[402028526,1768487448839,-726.12,0.00021917,2]
[402028527,1768487448849,-151.55533567,0.00021917,2]
[402028528,1768487448858,-500.0,0.00021917,2]
[402028529,1768487448868,-500.0,0.00021917,2]
[402028530,1768487448878,-500.0,0.00021917,2]
[402028531,1768487448887,-500.0,0.00021917,2]
[402028532,1768487448897,-1772.2,0.00021917,2]
[402028533,1768487448906,-500.0,0.00021917,2]
[402028534,1768487448916,-500.0,0.00021917,2]
[402028535,1768487448925,-505.65713369,0.00021917,2]
[402028536,1768487448935,-517.8,0.00021917,2]
[402028537,1768487448944,-500.0,0.00021917,2]
[402028538,1768487448955,-500.0,0.00021917,2]
[402028539,1768487448964,-500.0,0.00021917,2]
[402028540,1768487448973,-500.0,0.00021917,2]
[402028541,1768487448983,-500.0,0.00021917,2]
[402028542,1768487448992,-500.0,0.00021917,2]
[402028543,1768487449002,-589.94,0.00021917,2]
[402028544,1768487449170,-1786.4,0.00021917,2]
[402028545,1768487449180,-500.0,0.00021917,2]
[402028546,1768487449189,-500.0,0.00021917,2]
[402028547,1768487449198,-854.81,0.00021917,2]
[402028548,1768487449208,-500.0,0.00021917,2]
[402028549,1768487449218,-500.0,0.00021917,2]
[402028550,1768487449228,-500.0,0.00021917,2]
[402028551,1768487449239,-500.0,0.00021917,2]
[402028552,1768487449253,-782.57,0.00021917,2]
[402028553,1768487449263,-500.0,0.00021917,2]
[402028554,1768487449274,-500.0,0.00021917,2]
[402028555,1768487449285,-661.81,0.00021917,2]
[402028556,1768487449296,-937.88,0.00021917,2]
[402028557,1768487449306,-725.64,0.00021917,2]
[402028558,1768487449315,-1083.22,0.00021917,2]
[402028559,1768487449326,-500.0,0.00021917,2]
[402028560,1768487449335,-1394.53,0.00021917,2]
[402028561,1768487449345,-2723.97,0.00021917,2]
[402028562,1768487449354,-267.02700871,0.00021917,2]
[402028563,1768487449363,-881.61,0.00021917,2]
[402028564,1768487449372,-1470.16,0.00021917,2]
[402028565,1768487449382,-500.0,0.00021917,2]
[402028566,1768487449391,-652.0,0.00021917,2]
[402028567,1768487449401,-488.14097696,0.00021917,2]
[402028568,1768487449411,-500.0,0.00021917,2]
[402028569,1768487449420,-500.0,0.00021917,2]
[402028570,1768487449429,-602.56,0.00021917,2]
[402028571,1768487449439,-500.0,0.00021917,2]
[402028572,1768487449448,-1073.72,0.00021917,2]
[402028573,1768487449458,-670.48,0.00021917,2]
[402028574,1768487449467,-500.0,0.00021917,2]
[402028575,1768487449476,-1114.63,0.00021917,2]
[402028576,1768487449486,-795.08,0.00021917,2]
[402028577,1768487449495,-507.03468903,0.00021917,2]
[402028578,1768487449505,-1353.51,0.00021917,2]
[402028579,1768487449516,-500.0,0.00021917,2]
[402028580,1768487449528,-1093.41,0.00021917,2]
[402028581,1768487449537,-500.0,0.00021917,2]
[402028582,1768487449549,-500.0,0.00021917,2]
[402028583,1768487449559,-500.0,0.00021917,2]
[402028584,1768487449568,-500.0,0.00021917,2]
[402028585,1768487449578,-733.66,0.00021917,2]
[402028586,1768487449587,-500.0,0.00021917,2]
[402028587,1768487449598,-592.35,0.00021917,2]
[402028588,1768487449609,-725.46,0.00021917,2]
[402028589,1768487449620,-3008.55,0.00021917,2]
[402028590,1768487449630,-500.0,0.00021917,2]
[402028591,1768487449641,-586.6,0.00021917,2]
[402028592,1768487449650,-500.0,0.00021917,2]
[402028593,1768487449659,-1323.38,0.00021917,2]
[402028594,1768487449668,-500.0,0.00021917,2]
[402028595,1768487449678,-500.0,0.00021917,2]
[402028596,1768487449687,-509.43543372,0.00021917,2]
[402028597,1768487449696,-500.0,0.00021917,2]
[402028598,1768487449705,-1210.62,0.00021917,2]
[402028599,1768487449714,-500.0,0.00021917,2]
[402028600,1768487449723,-500.0,0.00021917,2]
[402028601,1768487449732,-500.0,0.00021917,2]
[402028602,1768487449741,-500.0,0.00021917,2]
[402028603,1768487449751,-500.0,0.00021917,2]
[402028604,1768487449760,-750.39,0.00021917,2]
[402028605,1768487449769,-500.0,0.00021917,2]
[402028606,1768487449780,-500.0,0.00021917,2]
[402028607,1768487449790,-500.0,0.00021917,2]
[402028608,1768487449799,-500.0,0.00021917,2]
[402028609,1768487449808,-553.23,0.00021917,2]
[402028610,1768487449818,-1482.63,0.00021917,2]
[402028611,1768487449827,-500.0,0.00021917,2]
[402028612,1768487449837,-500.0,0.00021917,2]
[402028613,1768487449846,-536.25,0.00021917,2]
[402028614,1768487449856,-500.0,0.00021917,2]
[402028615,1768487449865,-500.0,0.00021917,2]
[402028616,1768487449875,-500.0,0.00021917,2]
[402028617,1768487449884,-756.43,0.00021917,2]
[402028618,1768487449895,-500.0,0.00021917,2]
[402028619,1768487449905,-500.0,0.00021917,2]
[402028620,1768487449914,-500.0,0.00021917,2]
[402028621,1768487449924,-500.0,0.00021917,2]
[402028622,1768487449934,-500.0,0.00021917,2]
[402028623,1768487449943,-1685.75,0.00021917,2]
[402028624,1768487449954,-500.0,0.00021917,2]
[402028625,1768487449964,-500.0,0.00021917,2]
[402028626,1768487449974,-500.0,0.00021917,2]
[402028627,1768487449984,-2008.87,0.00021917,2]
[402028628,1768487449993,-500.0,0.00021917,2]
[402028629,1768487450003,-500.0,0.00021917,2]
[402028630,1768487450012,-500.0,0.00021917,2]
[402028631,1768487450022,-500.0,0.00021917,2]
[402028632,1768487450031,-500.0,0.00021917,2]
[402028633,1768487450042,-500.0,0.00021917,2]
[402028634,1768487450052,-500.0,0.00021917,2]
[402028635,1768487450062,-511.74888197,0.00021917,2]
[402028636,1768487450071,-500.0,0.00021917,2]
[402028637,1768487450081,-571.68648457,0.00021917,2]
[402028638,1768487450092,-500.0,0.00021917,2]
[402028639,1768487450101,-1116.83,0.00021917,2]
[402028640,1768487450111,-1086.09,0.00021917,2]
[402028641,1768487450121,-1803.33,0.00021917,2]
[402028642,1768487450131,-702.6,0.00021917,2]
[402028643,1768487450141,-823.85,0.00021917,2]
[402028644,1768487450150,-500.0,0.00021917,2]
[402028645,1768487450160,-500.0,0.00021917,2]
[402028646,1768487450170,-500.0,0.00021917,2]
[402028647,1768487450179,-500.0,0.00021917,2]
[402028648,1768487450188,-500.0,0.00021917,2]
[402028649,1768487450198,-1893.75,0.00021917,2]
[402028650,1768487450208,-628.34675465,0.00021917,2]
[402028651,1768487450218,-500.0,0.00021917,2]
[402028652,1768487450228,-500.0,0.00021917,2]
[402028653,1768487450241,-500.0,0.00021917,2]
[402028654,1768487450252,-500.0,0.00021917,2]
[402028655,1768487450262,-1226.97,0.00021917,2]
[402028656,1768487450272,-500.0,0.00021917,2]
[402028657,1768487450284,-500.0,0.00021917,2]
[402028658,1768487450297,-512.00368204,0.00021917,2]
[402028659,1768487450307,-881.98,0.00021917,2]
[402028660,1768487450317,-500.0,0.00021917,2]
[402028661,1768487450326,-526.73,0.00021917,2]
[402028662,1768487450336,-991.82,0.00021917,2]
[402028663,1768487450345,-500.0,0.00021917,2]
[402028664,1768487450354,-500.0,0.00021917,2]
[402028665,1768487450364,-500.0,0.00021917,2]
[402028666,1768487450373,-500.0,0.00021917,2]
[402028667,1768487450382,-1273.1,0.00021917,2]
[402028668,1768487450391,-532.10371951,0.00021917,2]
[402028669,1768487450401,-633.46,0.00021917,2]
[402028670,1768487450411,-1556.57,0.00021917,2]
[402028671,1768487450421,-500.0,0.00021917,2]
[402028672,1768487450430,-500.0,0.00021917,2]
[402028673,1768487450439,-1773.57,0.00021917,2]
[402028674,1768487450449,-500.0,0.00021917,2]
[402028675,1768487450458,-2239.48,0.00021917,2]
[402028676,1768487450468,-500.0,0.00021917,2]
[402028677,1768487450477,-500.0,0.00021917,2]
[402028678,1768487450487,-500.0,0.00021917,2]
[402028679,1768487450496,-500.0,0.00021917,2]
[402028680,1768487450505,-2169.19,0.00021917,2]
[402028681,1768487450514,-500.0,0.00021917,2]
[402028682,1768487450523,-1934.33,0.00021917,2]
[402028683,1768487450533,-500.0,0.00021917,2]
[402028684,1768487450543,-546.27,0.00021917,2]
[402028685,1768487450553,-500.0,0.00021917,2]
[402028686,1768487450562,-500.0,0.00021917,2]
[402028687,1768487450571,-500.0,0.00021917,2]
[402028688,1768487450580,-500.0,0.00021917,2]
[402028689,1768487450590,-500.0,0.00021917,2]
[402028690,1768487450599,-500.0,0.00021917,2]
[402028691,1768487450608,-508.31434222,0.00021917,2]
[402028692,1768487450617,-500.0,0.00021917,2]
[402028693,1768487450626,-2336.87,0.00021917,2]
[402028694,1768487450635,-929.89,0.00021917,2]
[402028695,1768487450644,-500.0,0.00021917,2]
[402028696,1768487450653,-500.0,0.00021917,2]
[402028697,1768487450663,-500.0,0.00021917,2]
[402028698,1768487450672,-500.0,0.00021917,2]
[402028699,1768487450681,-500.0,0.00021917,2]
[402028700,1768487450691,-500.0,0.00021917,2]
[402028701,1768487450700,-500.0,0.00021917,2]
[402028702,1768487450710,-200.0,0.00021917,2]
[402028703,1768487450719,-1009.61,0.00021917,2]
[402028704,1768487450729,-687.14,0.00021917,2]
[402028705,1768487450739,-734.12,0.00021917,2]
[402028706,1768487450748,-500.0,0.00021917,2]
[402028707,1768487450757,-773.67,0.00021917,2]
[402028708,1768487450767,-500.0,0.00021917,2]
[402028709,1768487450777,-513.82,0.00021917,2]
[402028710,1768487450787,-1103.55,0.00021917,2]
[402028711,1768487450797,-500.0,0.00021917,2]
[402028712,1768487450807,-518.10617227,0.00021917,2]
[402028713,1768487450816,-1005.25,0.00021917,2]
[402028714,1768487450826,-1116.14,0.00021917,2]
[402028715,1768487450835,-500.0,0.00021917,2]
[402028716,1768487450844,-543.94384475,0.00021917,2]
[402028717,1768487450854,-500.0,0.00021917,2]
[402028718,1768487450863,-1999.12,0.00021917,2]
[402028719,1768487450873,-500.0,0.00021917,2]
[402028720,1768487450882,-500.0,0.00021917,2]
[402028721,1768487450892,-500.0,0.00021917,2]
[402028722,1768487450901,-500.0,0.00021917,2]
[402028723,1768487450911,-500.0,0.00021917,2]
[402028724,1768487450921,-1283.41,0.00021917,2]
[402028725,1768487450930,-549.87,0.00021917,2]
[402028726,1768487450940,-500.0,0.00021917,2]
[402028727,1768487450949,-507.91708471,0.00021917,2]
[402028728,1768487450959,-657.58,0.00021917,2]
[402028729,1768487450968,-500.0,0.00021917,2]
[402028730,1768487450978,-500.0,0.00021917,2]
[402028731,1768487450987,-769.55,0.00021917,2]
[402028732,1768487450996,-859.92,0.00021917,2]
[402028733,1768487451006,-1274.55,0.00021917,2]
[402028734,1768487451015,-755.36,0.00021917,2]
[402028735,1768487451025,-500.0,0.00021917,2]
[402028736,1768487451034,-548.51,0.00021917,2]
[402028737,1768487451045,-500.0,0.00021917,2]
[402028738,1768487451054,-500.0,0.00021917,2]
[402028739,1768487451064,-500.0,0.00021917,2]
[402028740,1768487451074,-577.77,0.00021917,2]
[402028741,1768487451084,-1171.54,0.00021917,2]
[402028742,1768487451094,-500.0,0.00021917,2]
[402028743,1768487451104,-1735.71,0.00021917,2]
[402028744,1768487451115,-856.53,0.00021917,2]
[402028745,1768487451124,-500.0,0.00021917,2]
[402028746,1768487451134,-500.0,0.00021917,2]
[402028747,1768487451143,-500.0,0.00021917,2]
[402028748,1768487451153,-500.0,0.00021917,2]
[402028749,1768487451162,-885.89,0.00021917,2]
[402028750,1768487451172,-500.0,0.00021917,2]
[402028751,1768487451182,-500.0,0.00021917,2]
[402028752,1768487451192,-1566.67,0.00021917,2]
[402028753,1768487451201,-500.0,0.00021917,2]
[402028754,1768487451211,-1875.79,0.00021917,2]
[402028755,1768487451221,-500.0,0.00021917,2]
[402028756,1768487451231,-500.0,0.00021917,2]
[402028757,1768487451241,-500.0,0.00021917,2]
[402028758,1768487451252,-1582.37,0.00021917,2]
[402028759,1768487451261,-641.44,0.00021917,2]
[402028760,1768487451270,-1167.14,0.00021917,2]
[402028761,1768487451281,-717.39,0.00021917,2]
[402028762,1768487451290,-500.0,0.00021917,2]
[402028763,1768487451301,-1327.2,0.00021917,2]
[402028764,1768487451310,-500.0,0.00021917,2]
[402028765,1768487451321,-550.33,0.00021917,2]
[402028766,1768487451330,-500.0,0.00021917,2]
[402028767,1768487451339,-500.0,0.00021917,2]
[402028768,1768487451349,-500.0,0.00021917,2]
[402028769,1768487451358,-536.0,0.00021917,2]
[402028770,1768487451367,-893.0,0.00021917,2]
[402028771,1768487451376,-1093.12,0.00021917,2]
[402028772,1768487451385,-500.0,0.00021917,2]
[402028773,1768487451395,-1111.22,0.00021917,2]
[402028774,1768487451403,-500.0,0.00021917,2]
[402028775,1768487451413,-500.0,0.00021917,2]
[402028776,1768487451423,-500.0,0.00021917,2]
[402028777,1768487451432,-500.0,0.00021917,2]
[402028778,1768487451442,-500.0,0.00021917,2]
[402028779,1768487451451,-974.62,0.00021917,2]
[402028780,1768487451460,-548.4,0.00021917,2]
[402028781,1768487451469,-500.0,0.00021917,2]
[402028782,1768487451478,-1254.11,0.00021917,2]
[402028783,1768487451487,-500.0,0.00021917,2]
[402028784,1768487451497,-500.0,0.00021917,2]
[402028785,1768487451505,-588.45,0.00021917,2]
[402028786,1768487451515,-500.0,0.00021917,2]
[402028787,1768487451524,-590.1,0.00021917,2]
[402028788,1768487451533,-500.0,0.00021917,2]
[402028789,1768487451543,-1693.22,0.00021917,2]
[402028790,1768487451552,-821.11,0.00021917,2]
[402028791,1768487451561,-500.0,0.00021917,2]
[402028792,1768487451570,-500.0,0.00021917,2]
[402028793,1768487451579,-1106.41,0.00021917,2]
[402028794,1768487451589,-500.0,0.00021917,2]
[402028795,1768487451598,-500.0,0.00021917,2]
[402028796,1768487451608,-875.29,0.00021917,2]
[402028797,1768487451618,-703.12,0.00021917,2]
[402028798,1768487451627,-500.0,0.00021917,2]
[402028799,1768487451783,-2170.69,0.00021917,2]
[402028800,1768487451793,-523.93201199,0.00021917,2]
[402028801,1768487451802,-500.0,0.00021917,2]
[402028802,1768487451811,-1318.35,0.00021917,2]
[402028803,1768487451821,-1209.18,0.00021917,2]
[402028804,1768487451830,-500.0,0.00021917,2]
[402028805,1768487451839,-500.0,0.00021917,2]
[402028806,1768487451848,-548.67,0.00021917,2]
[402028807,1768487451856,-500.0,0.00021917,2]
[402028808,1768487451865,-500.0,0.00021917,2]
[402028809,1768487451875,-629.01,0.00021917,2]
[402028810,1768487451884,-500.0,0.00021917,2]
[402028811,1768487451893,-500.0,0.00021917,2]
[402028812,1768487451902,-500.0,0.00021917,2]
[402028813,1768487451911,-500.0,0.00021917,2]
[402028814,1768487451920,-1139.79,0.00021917,2]
[402028815,1768487451929,-500.0,0.00021917,2]
[402028816,1768487451938,-631.94208619,0.00021917,2]
[402028817,1768487451948,-500.0,0.00021917,2]
[402028818,1768487451957,-931.03,0.00021917,2]
[402028819,1768487451965,-500.0,0.00021917,2]
[402028820,1768487451974,-500.0,0.00021917,2]
[402028821,1768487451983,-500.0,0.00021917,2]
[402028822,1768487451991,-500.0,0.00021917,2]
[402028823,1768487452001,-500.0,0.00021917,2]
[402028824,1768487452010,-1048.28,0.00021917,2]
[402028825,1768487452019,-2170.59,0.00021917,2]
[402028826,1768487452028,-500.0,0.00021917,2]
[402028827,1768487452037,-500.0,0.00021917,2]
[402028828,1768487452047,-500.0,0.00021917,2]
[402028829,1768487452056,-601.2937611,0.00021917,2]
[402028830,1768487452065,-522.45106523,0.00021917,2]
[402028831,1768487452074,-500.0,0.00021917,2]
[402028832,1768487452083,-500.0,0.00021917,2]
[402028833,1768487452092,-500.0,0.00021917,2]
[402028834,1768487452101,-1912.16,0.00021917,2]
[402028835,1768487452111,-500.0,0.00021917,2]
[402028836,1768487452120,-500.0,0.00021917,2]
[402028837,1768487452129,-500.0,0.00021917,2]
[402028838,1768487452138,-500.0,0.00021917,2]
[402028839,1768487452147,-500.0,0.00021917,2]
[402028840,1768487452156,-500.0,0.00021917,2]
[402028841,1768487452165,-500.0,0.00021917,2]
[402028842,1768487452175,-974.07,0.00021917,2]
[402028843,1768487452184,-1480.33,0.00021917,2]
[402028844,1768487452193,-500.0,0.00021917,2]
[402028845,1768487452203,-500.0,0.00021917,2]
[402028846,1768487452212,-502.05866103,0.00021917,2]
[402028847,1768487452221,-500.0,0.00021917,2]
[402028848,1768487452232,-513.21338468,0.00021917,2]
[402028849,1768487452242,-500.0,0.00021917,2]
[402028850,1768487452251,-531.32,0.00021917,2]
[402028851,1768487452260,-500.0,0.00021917,2]
[402028852,1768487452270,-1024.21,0.00021917,2]
[402028853,1768487452280,-546.92,0.00021917,2]
[402028854,1768487452290,-500.0,0.00021917,2]
[402028855,1768487452300,-500.0,0.00021917,2]
[402028856,1768487452309,-506.46388091,0.00021917,2]
[402028857,1768487452321,-521.85,0.00021917,2]
[402028858,1768487452330,-500.0,0.00021917,2]
[402028859,1768487452339,-500.0,0.00021917,2]
[402028860,1768487452348,-500.0,0.00021917,2]
[402028861,1768487452357,-785.17,0.00021917,2]
[402028862,1768487452366,-500.0,0.00021917,2]
[402028863,1768487452375,-500.0,0.00021917,2]
[402028864,1768487452384,-2192.63,0.00021917,2]
[402028865,1768487452392,-500.0,0.00021917,2]
[402028866,1768487452401,-500.0,0.00021917,2]
[402028867,1768487452410,-355.71564879,0.00021917,2]
[402028868,1768487452419,-1028.48,0.00021917,2]
[402028869,1768487452428,-500.0,0.00021917,2]
[402028870,1768487452436,-671.58,0.00021917,2]
[402028871,1768487452447,-500.0,0.00021917,2]
[402028872,1768487452458,-500.0,0.00021917,2]
[402028873,1768487452468,-500.0,0.00021917,2]
[402028874,1768487452478,-629.12,0.00021917,2]
[402028875,1768487452488,-566.3,0.00021917,2]
[402028876,1768487452498,-500.0,0.00021917,2]
[402028877,1768487452508,-500.0,0.00021917,2]
[402028878,1768487452518,-500.0,0.00021917,2]
[402028879,1768487452528,-500.0,0.00021917,2]
[402028880,1768487452538,-1347.85,0.00021917,2]
[402028881,1768487452549,-500.0,0.00021917,2]
[402028882,1768487452558,-500.0,0.00021917,2]
[402028883,1768487452567,-570.17,0.00021917,2]
[402028884,1768487452576,-500.0,0.00021917,2]
[402028885,1768487452586,-500.0,0.00021917,2]
[402028886,1768487452594,-500.0,0.00021917,2]
[402028887,1768487452603,-500.0,0.00021917,2]
[402028888,1768487452612,-500.0,0.00021917,2]
[402028889,1768487452621,-500.0,0.00021917,2]
[402028890,1768487452630,-834.07,0.00021917,2]
[402028891,1768487452639,-519.0,0.00021917,2]
[402028892,1768487452648,-500.0,0.00021917,2]
[402028893,1768487452657,-801.47,0.00021917,2]
[402028894,1768487452666,-1489.31,0.00021917,2]
[402028895,1768487452675,-500.0,0.00021917,2]
[402028896,1768487452684,-500.0,0.00021917,2]
[402028897,1768487452693,-1784.56,0.00021917,2]
[402028898,1768487452702,-500.0,0.00021917,2]
[402028899,1768487452712,-500.0,0.00021917,2]
[402028900,1768487452721,-500.0,0.00021917,2]
[402028901,1768487452730,-500.0,0.00021917,2]
[402028902,1768487452739,-500.0,0.00021917,2]
[402028903,1768487452748,-500.0,0.00021917,2]
[402028904,1768487452757,-500.0,0.00021917,2]
[402028905,1768487452767,-642.34,0.00021917,2]
[402028906,1768487452776,-500.0,0.00021917,2]
[402028907,1768487452785,-875.6,0.00021917,2]
[402028908,1768487452795,-500.0,0.00021917,2]
[402028909,1768487452805,-510.57835333,0.00021917,2]
[402028910,1768487452814,-500.0,0.00021917,2]
[402028911,1768487452823,-500.0,0.00021917,2]
[402028912,1768487452832,-500.0,0.00021917,2]
[402028913,1768487452841,-500.0,0.00021917,2]
[402028914,1768487452850,-2130.18,0.00021917,2]
[402028915,1768487452860,-930.4,0.00021917,2]
[402028916,1768487452871,-3208.73,0.00021917,2]
[402028917,1768487452880,-355.96378196,0.00021917,2]
[402028918,1768487452891,-500.0,0.00021917,2]
[402028919,1768487452900,-7250.03,0.00021917,2]
[402028920,1768487452910,-512.62114639,0.00021917,2]
[402028921,1768487452919,-924.16,0.00021917,2]
[402028922,1768487452928,-510.35756485,0.00021917,2]
[402028923,1768487452937,-2017.34,0.00021917,2]
[402028924,1768487452946,-500.0,0.00021917,2]
[402028925,1768487452955,-502.53161961,0.00021917,2]
[402028926,1768487452964,-500.0,0.00021917,2]
[402028927,1768487452973,-500.0,0.00021917,2]
[402028928,1768487452982,-500.0,0.00021917,2]
[402028929,1768487452992,-500.0,0.00021917,2]
[402028930,1768487453001,-500.0,0.00021917,2]
[402028931,1768487453010,-500.0,0.00021917,2]
[402028932,1768487453020,-754.42,0.00021917,2]
[402028933,1768487453029,-500.0,0.00021917,2]
[402028934,1768487453039,-500.0,0.00021917,2]
[402028935,1768487453051,-1614.45,0.00021917,2]
[402028936,1768487453060,-500.0,0.00021917,2]
[402028937,1768487453071,-244.78865135,0.00021917,2]
[402028938,1768487453081,-583.63,0.00021917,2]
[402028939,1768487453091,-500.0,0.00021917,2]
[402028940,1768487453100,-500.0,0.00021917,2]
[402028941,1768487453110,-690.02,0.00021917,2]
[402028942,1768487453119,-1059.37,0.00021917,2]
[402028943,1768487453129,-500.0,0.00021917,2]
[402028944,1768487453138,-779.65,0.00021917,2]
[402028945,1768487453147,-1210.81,0.00021917,2]
[402028946,1768487453157,-500.0,0.00021917,2]
[402028947,1768487453166,-1238.32,0.00021917,2]
[402028948,1768487453176,-2325.64,0.00021917,2]
[402028949,1768487453185,-500.0,0.00021917,2]
[402028950,1768487453195,-500.0,0.00021917,2]
[402028951,1768487453204,-500.0,0.00021917,2]
[402028952,1768487453214,-500.0,0.00021917,2]
[402028953,1768487453224,-500.0,0.00021917,2]
[402028954,1768487453235,-500.0,0.00021917,2]
[402028955,1768487453246,-374.84587832,0.00021917,2]
[402028956,1768487453256,-506.42798932,0.00021917,2]
[402028957,1768487453265,-500.0,0.00021917,2]
[402028958,1768487453275,-747.69,0.00021917,2]
[402028959,1768487453285,-500.0,0.00021917,2]
[402028960,1768487453294,-500.0,0.00021917,2]
[402028961,1768487453304,-500.0,0.00021917,2]
[402028962,1768487453314,-644.04,0.00021917,2]
[402028963,1768487453325,-500.0,0.00021917,2]
[402028964,1768487453334,-500.0,0.00021917,2]
[402028965,1768487453344,-900.81,0.00021917,2]
[402028966,1768487453353,-922.21,0.00021917,2]
[402028967,1768487453363,-500.0,0.00021917,2]
[402028968,1768487453372,-1804.12,0.00021917,2]
[402028969,1768487453382,-500.0,0.00021917,2]
[402028970,1768487453391,-513.28277488,0.00021917,2]